[Event "World Senior chT-65 2019"]
[Site "Rhodes"]
[Date "2019.04.22"]
[Round "7.5"]
[White "Knaak, Rainer"]
[Black "Karason, Askell O"]
[Result "1-0"]
[ECO "A46"]
[WhiteElo "2482"]
[BlackElo "2252"]
[Annotator "RC"]
[PlyCount "85"]
[EventDate "2019.04.16"]
[EventType "team-tourn"]
[EventCountry "GRE"]
[SourceTitle "playchess.com"]
[Source "ChessBase"]
[SourceQuality "1"]
[WhiteTeam "Germany"]
[BlackTeam "Iceland"]
[WhiteTeamCountry "GER"]
[BlackTeamCountry "ISL"]
[TimeControl "40/5400+30:1800+30"]

1. d4 {[%emt 0:00:00]} e6 {[%emt 0:00:00]} 2. Nf3 {[%emt 0:00:24]} Nf6 {[%emt 0:00:00]} 3. a3 {[%emt 0:01:21]} d5 {[%emt 0:00:15]} 4. Bf4 {[%emt 0:00:19]} c5 {[%emt 0:01:16]} 5. e3 {[%emt 0:00:18]} Nc6 {[%emt 0:00:13]} 6. c3 {[%emt 0:02:05]} Bd6 {[%emt 0:02:05]} 7. Bd3 {[%emt 0:06:10]} O-O {[%emt 0:00:40]} 8. O-O {[%emt 0:08:22]} b6 {[%emt 0:06:02]} 9. b4 {[%emt 0:05:16]} Bb7 {[%emt 0:03:35]} 10. Nbd2 {[%emt 0:03:57]} cxd4 {[%emt 0:00:42]} 11. cxd4 {[%emt 0:14:07]} a5 {[%emt 0:07:12]} 12. b5 {[%emt 0:00:23]} Ne7 {[%emt 0:00:05]} 13. Ne5 {[%emt 0:08:11]} Ng6 {[%emt 0:00:58]} 14. Bg3 {[%emt 0:06:41]} Rc8 {[%emt 0:04:51]} 15. f4 {[%emt 0:03:38]} Ne4 {[%emt 0:03:55]} 16. Bxe4 {[%emt 0:14:05]} dxe4 {[%emt 0:00:17]} 17. Nc6 {[%emt 0:07:16]} Bxc6 {[%emt 0:16:41]} 18. bxc6 {[%emt 0:00:04]} Ne7 {[%emt 0:02:31]} 19. Nxe4 {[%emt 0:00:17]} Nf5 {[%emt 0:00:58]} 20. Qd3 {[%emt 0:00:51]} Rxc6 {[%emt 0:00:45]} 21. Rfb1 {[%emt 0:00:25]} Be7 {[%emt 0:01:59]} 22. Be1 {[%emt 0:00:45]} h5 {[%emt 0:02:42]} 23. Bd2 {[%emt 0:02:29]} Qc7 {[%emt 0:10:56]} 24. Rb5 {[%emt 0:00:04]} Rd8 {[%emt 0:01:59]} 25. Rab1 {[%emt 0:00:19]} Rd5 {[%emt 0:01:21]} 26. Nc3 {[%emt 0:02:54]} Rxb5 {[%emt 0:11:24]} 27. Nxb5 {[%emt 0:00:01]} Qd8 {[%emt 0:00:18]} 28. a4 {[%emt 0:03:43]} Bf6 {[%emt 0:01:08]} 29. Bc3 {[%emt 0:00:39]} Nd6 {[%emt 0:03:52]} 30. Be1 {[%emt 0:00:09]} g6 {[%emt 0:01:02]} 31. h3 {[%emt 0:02:40]} Kg7 {[%emt 0:00:42]} 32. Bf2 {[%emt 0:01:43]} Nxb5 {[%emt 0:01:32]} 33. axb5 {[%emt 0:01:01]} Rc7 {[%emt 0:02:15]} 34. e4 {[%emt 0:00:52]} Rd7 {[%emt 0:00:21]} 35. Rd1 {[%emt 0:00:50]} a4 {[%emt 0:01:36]} 36. d5 {[%emt 0:01:57]} exd5 {[%emt 0:00:07]} 37. exd5 {[%emt 0:01:42]} a3 {[%emt 0:00:58]} 38. Qxa3 {[%emt 0:00:24]} Rxd5 {[%emt 0:00:04]} 39. Rxd5 {[%emt 0:00:17]} Qxd5 {[%emt 0:00:05]} 40. Qb4 {[%emt 0:00:00]} Qe6 {[%emt 0:00:00]} 41. Qa4 {[%emt 0:02:28]} Qd5 {[%emt 0:02:28]} 42. Bxb6 {[%emt 0:01:36]} Qd6 {[%emt 0:00:09]} 43. Bf2 {[%emt 0:00:30]} 1-0

[Event "World Senior chT-65 2019"]
[Site "Rhodes"]
[Date "2019.04.22"]
[Round "7.6"]
[White "Gudmundsson, Kristjan"]
[Black "Vogt, Lothar"]
[Result "0-1"]
[ECO "B50"]
[WhiteElo "2268"]
[BlackElo "2362"]
[Annotator "NA"]
[PlyCount "44"]
[EventDate "2019.04.16"]
[EventType "team-tourn"]
[EventCountry "GRE"]
[SourceTitle "playchess.com"]
[Source "ChessBase"]
[SourceQuality "1"]
[WhiteTeam "Iceland"]
[BlackTeam "Germany"]
[WhiteTeamCountry "ISL"]
[BlackTeamCountry "GER"]
[TimeControl "40/5400+30:1800+30"]

1. e4 {[%emt 0:02:50]} c5 {[%emt 0:00:00]} 2. Nf3 {[%emt 0:00:07]} e6 {[%emt 0:00:00]} 3. d3 {[%emt 0:00:34]} Nc6 {[%emt 0:00:00]} 4. g3 {[%emt 0:00:05]} d6 {[%emt 0:01:00]} 5. Bg2 {[%emt 0:00:20]} Nf6 {[%emt 0:00:30]} 6. O-O {[%emt 0:00:11]} Be7 {[%emt 0:00:05]} 7. Re1 {[%emt 0:03:30]} Bd7 {[%emt 0:00:32]} 8. c3 {[%emt 0:01:40]} O-O {[%emt 0:00:39]} 9. a3 {[%emt 0:09:49]} b5 {[%emt 0:08:26]} 10. Nbd2 {[%emt 0:13:50]} Qb6 $11 {[%emt 0:03:56]} 11. b4 {[%emt 0:10:56]} cxb4 {[%emt 0:06:20]} 12. axb4 {[%emt 0:07:28]} a5 {[%emt 0:02:47]} 13. bxa5 {[%emt 0:01:22]} Rxa5 {[%emt 0:02:35]} 14. Rb1 {[%emt 0:00:20]} Ra2 {[%emt 0:04:55]} 15. Bb2 {[%emt 0:05:53]} Qa7 {[%emt 0:07:21]} 16. Qb3 {[%emt 0:02:56]} Qa4 {[%emt 0:04:13]} 17. Bf1 {[%emt 0:02:57]} Rb8 {[%emt 0:10:33]} 18. d4 {[%emt 0:04:36]} Na5 {[%emt 0:03:15]} 19. Qxa4 {[%emt 0:04:26]} bxa4 {[%emt 0:00:02]} 20. Ba1 {[%emt 0:00:13]} Rxb1 {[%emt 0:02:06]} 21. Rxb1 {[%emt 0:00:03]} Nb3 {[%emt 0:00:21]} 22. Bc4 {[%emt 0:05:20]} Rxa1 {[%emt 0:00:39]} 0-1

[Event "World Senior chT-65 2019"]
[Site "Rhodes"]
[Date "2019.04.22"]
[Round "7.7"]
[White "Kiefer, Gerhard"]
[Black "Viglundsson, Bjorgvin"]
[Result "1-0"]
[ECO "C17"]
[WhiteElo "2279"]
[BlackElo "2170"]
[Annotator "NA"]
[PlyCount "43"]
[EventDate "2019.04.16"]
[EventType "team-tourn"]
[EventCountry "GRE"]
[SourceTitle "playchess.com"]
[Source "ChessBase"]
[SourceQuality "1"]
[WhiteTeam "Germany"]
[BlackTeam "Iceland"]
[WhiteTeamCountry "GER"]
[BlackTeamCountry "ISL"]
[TimeControl "40/5400+30:1800+30"]

1. e4 {[%emt 0:01:30]} e6 {[%emt 0:00:00]} 2. d4 {[%emt 0:00:04]} d5 {[%emt 0:00:00]} 3. Nc3 {[%emt 0:00:04]} Bb4 {[%emt 0:00:00]} 4. e5 {[%emt 0:00:05]} Ne7 {[%emt 0:00:00]} 5. Nf3 {[%emt 0:00:35]} c5 {[%emt 0:01:07]} 6. dxc5 {[%emt 0:00:07]} Nd7 {[%emt 0:00:15]} 7. Bd3 {[%emt 0:00:10]} Nxc5 {[%emt 0:00:20]} 8. O-O {[%emt 0:00:14]} Nxd3 {[%emt 0:00:13]} 9. cxd3 {[%emt 0:00:46]} Bd7 {[%emt 0:01:44]} 10. Nd4 {[%emt 0:07:20]} O-O {[%emt 0:05:19]} 11. Qg4 {[%emt 0:00:53]} Qb6 {[%emt 0:02:48]} 12. Bg5 {[%emt 0:12:32]} Ng6 {[%emt 0:03:14]} 13. Rae1 {[%emt 0:13:50]} Bc5 {[%emt 0:10:56]} 14. Nb3 {[%emt 0:02:12]} d4 {[%emt 0:03:44]} 15. Nxc5 {[%emt 0:14:43]} Qxc5 {[%emt 0:00:04]} 16. Ne4 {[%emt 0:00:30]} Qd5 {[%emt 0:03:54]} 17. f4 {[%emt 0:05:40]} Bc6 {[%emt 0:05:34]} 18. h4 {[%emt 0:01:21]} h5 {[%emt 0:06:17]} 19. Qxh5 {[%emt 0:01:36]} Qxa2 {[%emt 0:00:05]} 20. Nf6+ {[%emt 0:02:09]} gxf6 {[%emt 0:00:02]} 21. Bxf6 {[%emt 0:00:09]} Qxb2 {[%emt 0:00:57]} 22. Re2 {[%emt 0:00:57]} 1-0

[Event "World Senior chT-65 2019"]
[Site "Rhodes"]
[Date "2019.04.22"]
[Round "7.8"]
[White "Kristinsson, Jon"]
[Black "Buchal, Stephan"]
[Result "1/2-1/2"]
[ECO "E66"]
[WhiteElo "2094"]
[BlackElo "2283"]
[Annotator "NA"]
[PlyCount "60"]
[EventDate "2019.04.16"]
[EventType "team-tourn"]
[EventCountry "GRE"]
[SourceTitle "playchess.com"]
[Source "ChessBase"]
[SourceQuality "1"]
[WhiteTeam "Iceland"]
[BlackTeam "Germany"]
[WhiteTeamCountry "ISL"]
[BlackTeamCountry "GER"]
[TimeControl "40/5400+30:1800+30"]

1. d4 {[%emt 0:00:00]} d6 {[%emt 0:00:00]} 2. g3 {[%emt 0:00:26]} g6 {[%emt 0:00:03]} 3. Bg2 {[%emt 0:00:17]} Bg7 {[%emt 0:00:06]} 4. Nf3 {[%emt 0:00:07]} Nf6 {[%emt 0:00:07]} 5. O-O {[%emt 0:00:19]} O-O {[%emt 0:00:07]} 6. c4 {[%emt 0:00:12]} Nc6 {[%emt 0:00:24]} 7. d5 {[%emt 0:01:22]} Na5 {[%emt 0:00:42]} 8. Nfd2 {[%emt 0:00:13]} a6 {[%emt 0:08:45]} 9. Nc3 {[%emt 0:00:55]} c5 {[%emt 0:01:24]} 10. Qc2 {[%emt 0:00:47]} b5 {[%emt 0:00:51]} 11. cxb5 {[%emt 0:01:18]} axb5 {[%emt 0:00:10]} 12. Nxb5 {[%emt 0:02:28]} Bf5 {[%emt 0:00:26]} 13. e4 {[%emt 0:01:31]} Bc8 {[%emt 0:00:13]} 14. Re1 {[%emt 0:12:20]} Ba6 {[%emt 0:06:26]} 15. Bf1 {[%emt 0:01:47]} Ng4 $16 {[%emt 0:12:40]} 16. h3 {[%emt 0:11:34]} Ne5 {[%emt 0:02:34]} 17. f4 {[%emt 0:09:27]} c4 {[%emt 0:04:46]} 18. a4 {[%emt 0:02:54]} Nb3 {[%emt 0:14:03]} 19. Ra3 {[%emt 0:18:55]} Bxb5 {[%emt 0:06:14]} 20. fxe5 {[%emt 0:00:51]} Bxa4 {[%emt 0:06:28]} 21. Nxc4 {[%emt 0:03:20]} Nd4 {[%emt 0:04:39]} 22. Qf2 {[%emt 0:01:23]} dxe5 {[%emt 0:00:51]} 23. Be3 {[%emt 0:01:12]} Bd7 {[%emt 0:21:07]} 24. Rxa8 {[%emt 0:05:36]} Qxa8 {[%emt 0:00:11]} 25. Nxe5 {[%emt 0:00:19]} Bxe5 {[%emt 0:00:28]} 26. Bxd4 {[%emt 0:00:12]} Qb8 {[%emt 0:00:39]} 27. Kg2 {[%emt 0:02:06]} Qc7 {[%emt 0:03:20]} 28. Bd3 {[%emt 0:00:30]} Rb8 {[%emt 0:00:59]} 29. Re2 {[%emt 0:01:53]} Rb3 {[%emt 0:00:48]} 30. Rd2 {[%emt 0:01:54]} Rb4 {[%emt 0:03:24]} 1/2-1/2

[Event "World Senior chT-65 2019"]
[Site "Rhodes"]
[Date "2019.04.22"]
[Round "7.9"]
[White "Westerinen, Heikki M.J."]
[Black "Vaisser, Anatoli"]
[Result "0-1"]
[ECO "C02"]
[WhiteElo "2286"]
[BlackElo "2482"]
[Annotator "ChessBase"]
[PlyCount "96"]
[EventDate "2019.04.16"]
[EventType "team-tourn"]
[EventCountry "GRE"]
[SourceTitle "playchess.com"]
[Source "ChessBase"]
[SourceQuality "1"]
[WhiteTeam "Finland"]
[BlackTeam "France"]
[WhiteTeamCountry "FIN"]
[BlackTeamCountry "FRA"]
[TimeControl "40/5400+30:1800+30"]

1. e4 {[%emt 0:00:00]} e6 {[%emt 0:00:00]} 2. d4 {[%emt 0:00:04]} d5 {[%emt 0:00:00]} 3. e5 {[%emt 0:05:16]} c5 {[%emt 0:00:31]} 4. c3 {[%emt 0:00:20]} Qb6 {[%emt 0:01:41]} 5. Nf3 {[%emt 0:01:32]} Nc6 {[%emt 0:00:58]} 6. a3 {[%emt 0:07:26]} c4 {[%emt 0:01:06]} 7. Nbd2 {[%emt 0:03:49]} Na5 {[%emt 0:00:23]} 8. Be2 {[%emt 0:04:51]} Bd7 {[%emt 0:00:18]} 9. O-O {[%emt 0:01:47]} f6 {[%emt 0:09:30]} 10. Re1 {[%emt 0:06:13]} O-O-O {[%emt 0:04:13]} 11. b3 {[%emt 0:05:25]} cxb3 {[%emt 0:00:44]} 12. Bb2 {[%emt 0:00:08]} Bb5 {[%emt 0:12:11]} 13. Bxb5 {[%emt 0:06:10]} Qxb5 {[%emt 0:00:05]} 14. exf6 {[%emt 0:00:12]} Nxf6 {[%emt 0:00:15]} 15. Rxe6 {[%emt 0:00:24]} Bd6 {[%emt 0:02:22]} 16. a4 {[%emt 0:10:51]} Qb6 {[%emt 0:05:48]} 17. Ne5 {[%emt 0:05:00]} Rhe8 {[%emt 0:00:57]} 18. Rxe8 {[%emt 0:01:02]} Rxe8 {[%emt 0:00:08]} 19. c4 {[%emt 0:00:34]} Nxc4 {[%emt 0:20:36]} 20. Ndxc4 {[%emt 0:05:37]} dxc4 {[%emt 0:00:10]} 21. Nxc4 {[%emt 0:00:23]} Qd8 {[%emt 0:00:29]} 22. Qxb3 {[%emt 0:03:03]} Bc7 {[%emt 0:02:21]} 23. Ne5 {[%emt 0:03:37]} Qd5 {[%emt 0:02:41]} 24. Qxd5 {[%emt 0:07:00]} Nxd5 {[%emt 0:00:04]} 25. g3 {[%emt 0:01:32]} b6 {[%emt 0:05:10]} 26. Ra3 {[%emt 0:02:34]} Kb7 {[%emt 0:01:14]} 27. Rf3 {[%emt 0:01:23]} Ka6 {[%emt 0:02:17]} 28. Rf7 {[%emt 0:10:41]} Re7 {[%emt 0:00:10]} 29. Rf3 {[%emt 0:02:35]} Bd6 {[%emt 0:03:04]} 30. Rb3 {[%emt 0:00:42]} Rc7 {[%emt 0:03:42]} 31. Kg2 {[%emt 0:01:01]} Bb4 {[%emt 0:06:39]} 32. Nd3 {[%emt 0:01:06]} Ba5 {[%emt 0:03:19]} 33. Rb5 {[%emt 0:00:39]} Nc3 {[%emt 0:02:02]} 34. Bxc3 {[%emt 0:00:11]} Bxc3 {[%emt 0:01:17]} 35. d5 {[%emt 0:01:18]} Rc4 {[%emt 0:00:45]} 36. Rb3 {[%emt 0:00:23]} Ka5 {[%emt 0:02:28]} 37. d6 {[%emt 0:01:07]} Bf6 {[%emt 0:00:11]} 38. Nf4 {[%emt 0:01:05]} Rd4 {[%emt 0:02:38]} 39. Rb5+ {[%emt 0:01:02]} Kxa4 {[%emt 0:01:35]} 40. Rd5 {[%emt 0:00:00]} Rxd5 {[%emt 0:00:00]} 41. Nxd5 {[%emt 0:00:08]} Bd8 {[%emt 0:02:38]} 42. Nc7 {[%emt 0:09:39]} b5 {[%emt 0:00:36]} 43. Ne6 {[%emt 0:00:19]} Bb6 {[%emt 0:00:27]} 44. Kf3 {[%emt 0:01:29]} b4 {[%emt 0:00:39]} 45. Ke2 {[%emt 0:06:41]} b3 {[%emt 0:00:20]} 46. Kd2 {[%emt 0:03:37]} Ka3 {[%emt 0:00:22]} 47. Nc7 {[%emt 0:07:26]} b2 {[%emt 0:00:54]} 48. Nb5+ {[%emt 0:01:00]} Kb3 {[%emt 0:00:17]} 0-1

[Event "World Senior chT-65 2019"]
[Site "Rhodes"]
[Date "2019.04.22"]
[Round "7.10"]
[White "Sharif, Mehrshad"]
[Black "Rantanen, Yrjo A."]
[Result "1-0"]
[ECO "A05"]
[WhiteElo "2331"]
[BlackElo "2283"]
[Annotator "NA"]
[PlyCount "67"]
[EventDate "2019.04.16"]
[EventType "team-tourn"]
[EventCountry "GRE"]
[SourceTitle "playchess.com"]
[Source "ChessBase"]
[SourceQuality "1"]
[WhiteTeam "France"]
[BlackTeam "Finland"]
[WhiteTeamCountry "FRA"]
[BlackTeamCountry "FIN"]
[TimeControl "40/5400+30:1800+30"]

1. Nf3 {[%emt 0:00:00]} Nf6 {[%emt 0:01:49]} 2. g3 {[%emt 0:00:20]} g6 {[%emt 0:02:39]} 3. b3 {[%emt 0:01:47]} Bg7 {[%emt 0:01:18]} 4. Bb2 {[%emt 0:00:12]} O-O {[%emt 0:00:11]} 5. Bg2 {[%emt 0:00:11]} c5 {[%emt 0:07:00]} 6. c4 {[%emt 0:01:19]} e6 {[%emt 0:12:09]} 7. d4 {[%emt 0:03:08]} cxd4 {[%emt 0:13:19]} 8. Nxd4 {[%emt 0:00:49]} d5 {[%emt 0:00:27]} 9. cxd5 {[%emt 0:01:27]} Nxd5 {[%emt 0:00:10]} 10. O-O {[%emt 0:01:28]} Qa5 $14 {[%emt 0:01:41]} 11. Qd2 {[%emt 0:04:51]} Qxd2 {[%emt 0:05:04]} 12. Nxd2 {[%emt 0:01:23]} Rd8 {[%emt 0:00:14]} 13. Nc4 {[%emt 0:04:59]} Nb6 {[%emt 0:19:00]} 14. Rac1 {[%emt 0:01:59]} Nxc4 {[%emt 0:01:35]} 15. Rxc4 {[%emt 0:00:43]} Nd7 {[%emt 0:00:53]} 16. Rc2 {[%emt 0:09:54]} a6 {[%emt 0:01:05]} 17. Nf3 {[%emt 0:04:10]} Nf6 {[%emt 0:04:21]} 18. Ne5 {[%emt 0:14:32]} Nd5 {[%emt 0:06:31]} 19. Rd1 {[%emt 0:05:24]} Re8 {[%emt 0:04:31]} 20. Nc4 {[%emt 0:13:43]} b5 {[%emt 0:10:51]} 21. Bxg7 {[%emt 0:06:03]} Kxg7 {[%emt 0:01:42]} 22. Bxd5 {[%emt 0:02:23]} exd5 {[%emt 0:00:00]} 23. Nb6 {[%emt 0:00:16]} Bf5 {[%emt 0:01:30]} 24. Rcd2 {[%emt 0:00:30]} Rab8 {[%emt 0:00:28]} 25. Nxd5 {[%emt 0:00:29]} a5 {[%emt 0:00:12]} 26. f3 {[%emt 0:00:46]} b4 {[%emt 0:01:18]} 27. e4 {[%emt 0:09:24]} Bc8 {[%emt 0:00:13]} 28. Kf2 {[%emt 0:01:07]} f5 {[%emt 0:00:14]} 29. exf5 {[%emt 0:00:33]} Bxf5 {[%emt 0:00:01]} 30. g4 {[%emt 0:00:42]} Bc8 {[%emt 0:00:19]} 31. Rc2 {[%emt 0:00:58]} Rb7 {[%emt 0:00:37]} 32. Rdc1 {[%emt 0:02:00]} Re5 {[%emt 0:02:26]} 33. Rc7+ {[%emt 0:01:41]} Kh6 {[%emt 0:01:19]} 34. Nf6 {[%emt 0:00:32]} 1-0

[Event "World Senior chT-65 2019"]
[Site "Rhodes"]
[Date "2019.04.22"]
[Round "7.11"]
[White "Kivimaki, Jaakko"]
[Black "Giffard, Nicolas"]
[Result "1-0"]
[ECO "A46"]
[WhiteElo "2165"]
[BlackElo "2252"]
[Annotator "NA"]
[PlyCount "73"]
[EventDate "2019.04.16"]
[EventType "team-tourn"]
[EventCountry "GRE"]
[SourceTitle "playchess.com"]
[Source "ChessBase"]
[SourceQuality "1"]
[WhiteTeam "Finland"]
[BlackTeam "France"]
[WhiteTeamCountry "FIN"]
[BlackTeamCountry "FRA"]
[TimeControl "40/5400+30:1800+30"]

1. Nf3 {[%emt 0:00:15]} Nf6 {[%emt 0:00:00]} 2. d4 {[%emt 0:00:00]} e6 {[%emt 0:00:00]} 3. Bg5 {[%emt 0:00:23]} Be7 {[%emt 0:00:59]} 4. Nbd2 {[%emt 0:00:00]} h6 {[%emt 0:01:08]} 5. Bh4 {[%emt 0:01:21]} b6 {[%emt 0:01:25]} 6. e3 {[%emt 0:00:00]} Bb7 {[%emt 0:00:10]} 7. h3 {[%emt 0:00:13] A46: 1 d4 Nf6 2 Nf3 e6: Torre, London and Colle Systems} (7. Bd3 c5 8. c3 Nc6 9. O-O O-O 10. a3 cxd4 11. cxd4 Nd5 12. Bxe7 Ncxe7 13. Qe2 Rc8 14. Rfe1 Rc7 15. Rad1 d6 16. Bb1 Qc8 17. e4 Ba6 18. Bd3 Nf4 19. Bxa6 Nxe2+ 20. Bxe2 {½-½ (95) Radjabov,T (2738)-Perunovic,M (2622) Berlin 2015}) 7... d6 {[%emt 0:03:11]} 8. Bd3 {[%emt 0:02:14]} Nbd7 {[%emt 0:03:18]} 9. Bg3 {[%emt 0:02:19]} O-O {[%emt 0:02:09]} 10. O-O {[%emt 0:00:07]} Re8 {[%emt 0:03:29]} 11. e4 {[%emt 0:03:03]} d5 $146 {[%emt 0:05:32]} ({Predecessor:} 11... Bf8 12. e5 dxe5 13. dxe5 {1-0 (39) Lomako,P (2413)-Podolchenko,E (2467) Minsk 2008}) 12. e5 {[%emt 0:03:07]} Ne4 {[%emt 0:00:59]} 13. Bf4 {[%emt 0:00:47]} c5 {[%emt 0:00:55]} 14. c3 {[%emt 0:00:41]} cxd4 {[%emt 0:06:24]} 15. cxd4 {[%emt 0:00:10]} Nb8 {[%emt 0:01:07]} 16. Qe2 {[%emt 0:02:06]} Nxd2 {[%emt 0:00:16]} 17. Bxd2 {[%emt 0:00:43]} Nc6 {[%emt 0:00:16]} 18. a3 {[%emt 0:01:55]} a5 {[%emt 0:00:10]} 19. Rac1 {[%emt 0:01:25]} Qd7 {[%emt 0:01:27]} 20. Be3 $16 {[%emt 0:07:03]} Rec8 {[%emt 0:00:46]} 21. Rc2 {[%emt 0:04:01]} Nb8 {[%emt 0:06:48]} 22. Rfc1 {[%emt 0:03:05]} Rxc2 {[%emt 0:01:39]} 23. Bxc2 {[%emt 0:00:19]} Ba6 {[%emt 0:00:52]} 24. Qd2 {[%emt 0:00:10]} Bf8 {[%emt 0:00:14]} 25. Bb1 {[%emt 0:01:00]} a4 {[%emt 0:07:21]} 26. h4 {[%emt 0:07:00]} h5 {[%emt 0:03:08]} 27. Ng5 {[%emt 0:07:35]} Ra7 {[%emt 0:13:13]} 28. Qd1 {[%emt 0:01:41]} g6 {[%emt 0:00:25]} 29. g4 {[%emt 0:00:12]} hxg4 {[%emt 0:09:14]} 30. Qxg4 {[%emt 0:02:19]} Bg7 {[%emt 0:00:11]} 31. h5 {[%emt 0:01:57]} gxh5 {[%emt 0:00:21]} 32. Qxh5 {[%emt 0:00:09]} Rc7 {[%emt 0:00:14]} 33. Rxc7 {[%emt 0:00:52]} Qxc7 {[%emt 0:00:06]} 34. Bg6 {[%emt 0:04:55]} Kf8 {[%emt 0:01:46]} 35. Bxf7 {[%emt 0:00:44]} Qc2 {[%emt 0:00:07]} 36. Nxe6+ {[%emt 0:02:13]} Ke7 {[%emt 0:00:06]} 37. Nxg7 {[%emt 0:00:38]} 1-0

[Event "World Senior chT-65 2019"]
[Site "Rhodes"]
[Date "2019.04.22"]
[Round "7.13"]
[White "Birnboim, Nathan"]
[Black "Rooze, Jan"]
[Result "1-0"]
[ECO "E00"]
[WhiteElo "2365"]
[BlackElo "2261"]
[Annotator "NA"]
[PlyCount "71"]
[EventDate "2019.04.16"]
[EventType "team-tourn"]
[EventCountry "GRE"]
[SourceTitle "playchess.com"]
[Source "ChessBase"]
[SourceQuality "1"]
[WhiteTeam "Israel"]
[BlackTeam "Belgium"]
[WhiteTeamCountry "ISR"]
[BlackTeamCountry "BEL"]
[TimeControl "40/5400+30:1800+30"]

1. d4 {[%emt 0:00:00]} Nf6 {[%emt 0:00:10]} 2. c4 {[%emt 0:00:00]} e6 {[%emt 0:00:03]} 3. g3 {[%emt 0:00:00]} Bb4+ {[%emt 0:00:07]} 4. Nd2 {[%emt 0:00:39]} Nc6 {[%emt 0:01:05]} 5. Ngf3 {[%emt 0:00:34]} d6 {[%emt 0:00:38]} 6. Bg2 {[%emt 0:00:43]} a5 {[%emt 0:02:02]} 7. O-O {[%emt 0:00:38]} e5 {[%emt 0:01:08]} 8. Nb1 {[%emt 0:08:10]} exd4 {[%emt 0:04:54]} 9. Nxd4 {[%emt 0:00:07]} Nxd4 {[%emt 0:14:26]} 10. Qxd4 {[%emt 0:00:02]} h6 {[%emt 0:00:23]} 11. Nc3 {[%emt 0:09:25]} O-O $11 {[%emt 0:06:10]} 12. b3 {[%emt 0:06:07]} Re8 {[%emt 0:04:55]} 13. e3 {[%emt 0:00:53]} Bc5 {[%emt 0:06:28]} 14. Qd3 {[%emt 0:01:05]} Rb8 {[%emt 0:06:52]} 15. Bb2 {[%emt 0:09:48]} Bd7 {[%emt 0:05:03]} 16. h3 {[%emt 0:07:17]} Qc8 {[%emt 0:07:36]} 17. Kh2 {[%emt 0:01:19]} Bc6 {[%emt 0:03:11]} 18. Nd5 {[%emt 0:02:33]} Nxd5 {[%emt 0:04:00]} 19. cxd5 {[%emt 0:00:07]} Bd7 {[%emt 0:00:16]} 20. Qc3 {[%emt 0:00:30]} Re5 {[%emt 0:01:31]} 21. Qxa5 {[%emt 0:03:21]} Rh5 {[%emt 0:03:59]} 22. h4 {[%emt 0:01:01]} Ra8 {[%emt 0:05:14]} 23. Qc3 {[%emt 0:01:37]} Qf8 {[%emt 0:00:05]} 24. Qd2 {[%emt 0:04:39]} Bg4 {[%emt 0:05:30]} 25. b4 {[%emt 0:02:24]} Bb6 {[%emt 0:00:48]} 26. a4 {[%emt 0:01:00]} Re8 {[%emt 0:00:17]} 27. a5 {[%emt 0:00:23]} Ba7 {[%emt 0:00:05]} 28. Qc3 {[%emt 0:05:45]} Be2 {[%emt 0:01:57]} 29. Rfc1 {[%emt 0:02:06]} Rf5 {[%emt 0:01:18]} 30. Kg1 {[%emt 0:02:03]} Re7 {[%emt 0:05:17]} 31. Rc2 {[%emt 0:01:33]} Bf3 {[%emt 0:00:54]} 32. Bxf3 {[%emt 0:00:33]} Rxf3 {[%emt 0:00:06]} 33. Kg2 {[%emt 0:01:49]} Rf5 {[%emt 0:02:09]} 34. Qd3 {[%emt 0:01:13]} Qc8 {[%emt 0:01:37]} 35. e4 {[%emt 0:01:29]} Rh5 {[%emt 0:02:41]} 36. Qf3 {[%emt 0:01:33]} 1-0

[Event "World Senior chT-65 2019"]
[Site "Rhodes"]
[Date "2019.04.22"]
[Round "7.14"]
[White "Van de Wynkele, Herman"]
[Black "Berkovich, Mark A"]
[Result "0-1"]
[ECO "B12"]
[WhiteElo "2129"]
[BlackElo "2332"]
[Annotator "NA"]
[PlyCount "66"]
[EventDate "2019.04.16"]
[EventType "team-tourn"]
[EventCountry "GRE"]
[SourceTitle "playchess.com"]
[Source "ChessBase"]
[SourceQuality "1"]
[WhiteTeam "Belgium"]
[BlackTeam "Israel"]
[WhiteTeamCountry "BEL"]
[BlackTeamCountry "ISR"]
[TimeControl "40/5400+30:1800+30"]

1. e4 {[%emt 0:01:03]} c6 {[%emt 0:00:10]} 2. d4 {[%emt 0:00:00]} d5 {[%emt 0:00:36]} 3. e5 {[%emt 0:00:00]} c5 {[%emt 0:00:19]} 4. dxc5 {[%emt 0:00:01]} Nc6 {[%emt 0:00:05]} 5. Nf3 {[%emt 0:00:33]} Bg4 {[%emt 0:01:55]} 6. c3 {[%emt 0:00:36]} e6 {[%emt 0:00:40]} 7. b4 {[%emt 0:01:26]} a6 {[%emt 0:03:16]} 8. Be2 {[%emt 0:01:03]} Bxf3 {[%emt 0:02:55]} 9. Bxf3 {[%emt 0:01:48]} Nxe5 {[%emt 0:05:13]} 10. Qa4+ {[%emt 0:04:55]} Qd7 {[%emt 0:00:26]} 11. Qxd7+ {[%emt 0:01:42]} Kxd7 {[%emt 0:00:07]} 12. Be2 {[%emt 0:01:34]} Nf6 {[%emt 0:01:03]} 13. Nd2 {[%emt 0:02:11]} Be7 {[%emt 0:03:38]} 14. O-O {[%emt 0:01:48]} Rhd8 {[%emt 0:07:18]} 15. Re1 {[%emt 0:02:48]} Ke8 $11 {[%emt 0:22:12]} 16. f4 {[%emt 0:17:18]} Nc6 {[%emt 0:00:00]} 17. Bf3 {[%emt 0:18:36]} a5 {[%emt 0:00:00]} 18. b5 {[%emt 0:03:54]} Bxc5+ {[%emt 0:00:00]} 19. Kf1 {[%emt 0:00:10]} Ne7 {[%emt 0:00:00]} 20. Nb3 {[%emt 0:01:22]} Bb6 {[%emt 0:00:00]} 21. a4 {[%emt 0:00:29]} Rac8 {[%emt 0:00:00]} 22. Bd2 {[%emt 0:00:30]} Nf5 {[%emt 0:00:00]} 23. Re2 {[%emt 0:03:57]} Nd6 {[%emt 0:00:00]} 24. Be1 {[%emt 0:05:20]} Nfe4 {[%emt 0:00:00]} 25. c4 {[%emt 0:00:35]} Nxc4 {[%emt 0:00:00]} 26. Bxe4 {[%emt 0:00:46]} dxe4 {[%emt 0:00:00]} 27. Rxe4 {[%emt 0:00:05]} Ne3+ {[%emt 0:01:58]} 28. Ke2 {[%emt 0:00:47]} Rc2+ {[%emt 0:00:55]} 29. Kf3 {[%emt 0:00:02]} Nxg2 {[%emt 0:01:48]} 30. Bd2 {[%emt 0:04:41]} Rd3+ {[%emt 0:03:43]} 31. Kxg2 {[%emt 0:00:09]} Rxb3 {[%emt 0:00:05]} 32. Re2 {[%emt 0:00:38]} Rd3 {[%emt 0:00:27]} 33. Rd1 {[%emt 0:00:48]} Be3 {[%emt 0:01:08]} 0-1